fUSD/lending_fUSD_20240216
["ID","MTS","AMOUNT","RATE_DAILY","PERIOD"]
[314174134,1708045838268,-18635.1134,0.000373,2]
[314174136,1708045838277,-245000.0,0.000373,2]
[314174138,1708045838287,-40874.3554,0.000373,2]
[314174140,1708045838296,-153.71578538,0.00037307,2]
[314174142,1708045838306,-250.0,0.00037308,2]
[314174144,1708045838315,-135735.127888,0.0003739,10]
[314174146,1708045838325,-151.021624,0.00037398,24]
[314174148,1708045838334,-286.17896661,0.00037399,4]
[314174150,1708045838343,-265813.7592845,0.000374,3]
[314174152,1708045838353,-169881.48643661,0.000374,5]
[314174154,1708045838362,-151.021624,0.00037448,24]
[314174156,1708045838371,-1390.96979277,0.00037476,2]
[314174158,1708045838381,-501.8363643,0.00037476,2]
[314174160,1708045838390,-158.24,0.00037484,2]
[314174162,1708045838399,-165.0,0.000375,2]
[314174165,1708045838409,-5000.0,0.000375,30]
[314174167,1708045838419,-241.78,0.00037502,2]
[314174169,1708045838429,-151.021624,0.00037548,25]
[314174171,1708045838438,-1247.87258952,0.00037548,8]
[314174173,1708045838447,-1390.96979277,0.00037552,2]
[314174175,1708045838459,-500.0,0.00037582,2]
[314174177,1708045838468,-173.59709464,0.00037633,10]
[314174179,1708045838478,-205.21073047,0.00037633,10]
[314174181,1708045838487,-20316.32402394,0.00037633,10]
[314174183,1708045838496,-151.021624,0.00037648,25]
[314174185,1708045838506,-501.8363643,0.00037654,2]
[314174187,1708045838515,-150.0,0.00037699,2]
[314174189,1708045838524,-300.0,0.00037699,7]
[314174191,1708045838533,-615544.29121591,0.000377,3]
[314174193,1708045838542,-1866.29,0.00037722,2]
[314174195,1708045838551,-158.06,0.00037734,2]
[314174197,1708045838560,-151.021624,0.00037748,25]
[314174199,1708045838569,-151.0,0.0003778,120]
[314174201,1708045838579,-434.61200068,0.00037799,2]
[314174203,1708045838588,-1000.0,0.000378,2]
[314174205,1708045838598,-152.97427392,0.000378,2]
[314174207,1708045838607,-5000.0,0.000378,3]
[314174209,1708045838616,-16651.42784701,0.000378,5]
[314174211,1708045838625,-661.22217712,0.00037812,2]
[314174213,1708045838634,-7539.50549186,0.00037812,2]
[314174215,1708045838643,-1965.47458792,0.00037812,2]
[314174217,1708045838652,-2012.22943522,0.00037812,2]
[314174219,1708045838662,-457.20702012,0.00037812,2]
[314174221,1708045838672,-200.0,0.00037828,3]
[314174223,1708045838680,-800.0,0.00037828,5]
[314174225,1708045838689,-200.0,0.00037828,5]
[314174227,1708045838698,-200.0,0.00037828,10]
[314174229,1708045838707,-500.0,0.00037828,10]
[314174231,1708045838717,-200.0,0.00037828,10]
[314174233,1708045838726,-800.0,0.00037828,5]
[314174236,1708045838738,-200.0,0.00037828,10]
[314174238,1708045838747,-800.0,0.00037829,5]
[314174240,1708045838756,-200.0,0.00037829,10]
[314174242,1708045838766,-200.0,0.00037829,3]
[314174244,1708045838775,-200.0,0.00037829,3]
[314174246,1708045838784,-800.0,0.00037829,5]
[314174248,1708045838793,-800.0,0.00037829,5]
[314174272,1708045838802,-800.0,0.00037829,5]
[314174274,1708045839020,-200.0,0.00037829,5]
[314174276,1708045839029,-200.0,0.00037829,10]
[314174278,1708045839040,-200.0,0.00037829,10]
[314174280,1708045839049,-200.0,0.00037829,10]
[314174282,1708045839058,-200.0,0.00037829,10]
[314174284,1708045839067,-500.0,0.00037829,10]
[314174286,1708045839076,-500.0,0.00037829,10]
[314174288,1708045839086,-501.8363643,0.00037832,2]
[314174290,1708045839094,-3517.52631081,0.00037833,3]
[314174292,1708045839103,-465.02362376,0.00037833,3]
[314174294,1708045839112,-255.76299306,0.00037833,2]
[314174296,1708045839121,-543.26669291,0.0003784,3]
[314174299,1708045839131,-540.65658954,0.00037847,3]
[314174301,1708045839140,-222.71050844,0.00037847,3]
[314174303,1708045839149,-1688.0,0.00037877,7]
[314174304,1708045839158,-1688.0,0.00037892,7]
[314174306,1708045839169,-153.71578538,0.00037899,2]
[314174309,1708045839178,-500.0,0.00037899,15]
[314174311,1708045839187,-418.45870426,0.00037899,15]
[314174313,1708045839196,-500.0,0.00037899,15]
[314174315,1708045839205,-500.0,0.00037899,15]
[314174317,1708045839215,-396.48321959,0.00037899,15]
[314174319,1708045839224,-553686.054229,0.000379,2]
[314174321,1708045839233,-1688.0,0.00037912,7]
[314174323,1708045839242,-646.23,0.00037912,7]
[314174325,1708045839252,-1688.0,0.00037919,7]
[314174327,1708045839261,-92281.0090381,0.0003798,2]
[314174329,1708045839270,-64382.23859773,0.0003799,3]
[314174331,1708045839280,-160030.04012625,0.0003799,2]
[314174333,1708045839290,-1221.503449,0.00038,2]
[314174335,1708045839300,-16566.24867001,0.00038,2]
[314174337,1708045839309,-94770.40263119,0.00038,2]
[314174339,1708045839318,-155814.69123756,0.00038,2]
[314174341,1708045839327,-501.8363643,0.0003801,2]
[314174343,1708045839337,-158.55570567,0.00038032,4]
[314174345,1708045839347,-3000.0,0.00038034,2]
[314174347,1708045839356,-2102.04579485,0.0003804,2]
[314174349,1708045839365,-25097.13051655,0.00038042,2]
[314174351,1708045839375,-153.0,0.00038078,7]
[314174353,1708045839384,-41462.23267159,0.00038096,2]
[314174355,1708045839399,-67617.95921499,0.00038096,2]
[314174358,1708045839410,-37965.80440742,0.00038096,2]
[314174360,1708045839419,-151.021624,0.00038098,25]
[314174362,1708045839428,-150.0,0.000381,34]
[314174364,1708045839438,-20316.32402392,0.00038112,11]
[314174366,1708045839447,-150.01,0.00038133,2]
[314174368,1708045839456,-3316.12830692,0.00038133,2]
[314174370,1708045839465,-155.0,0.00038134,4]
[314174372,1708045839474,-3266.78191523,0.00038134,2]
[314174374,1708045839483,-2000.0,0.00038134,2]
[314174376,1708045839492,-200.0,0.00038134,2]
[314174378,1708045839501,-2000.0,0.00038134,2]
[314174380,1708045839510,-200.0,0.00038134,2]
[314174382,1708045839519,-482.66906,0.00038136,2]
[314174384,1708045839528,-1015.40695577,0.00038182,2]
[314174386,1708045839537,-501.8363643,0.00038188,2]
[314174388,1708045839546,-151.021624,0.00038198,24]
[314174390,1708045839555,-153.0,0.00038215,7]
[314174392,1708045839564,-165.54,0.00038239,2]
[314174394,1708045839573,-1000.0,0.00038256,2]
[314174396,1708045839582,-13762.1016,0.00038256,2]
[314174398,1708045839591,-55555.0,0.00038256,3]
[314174400,1708045839600,-200.31907233,0.00038256,2]
[314174402,1708045839610,-1247.8725895,0.0003827,8]
[314174404,1708045839619,-151.021624,0.00038298,24]
[314174406,1708045839628,-1390.96979277,0.00038321,2]
[314174408,1708045839637,-153.0,0.00038352,7]
[314174410,1708045839646,-500.0,0.00038356,7]
[314174412,1708045839655,-548.70613449,0.00038356,9]
[314174414,1708045839666,-500.0,0.00038356,7]
[314174415,1708045839675,-500.0,0.00038356,7]
[314174417,1708045839684,-500.0,0.00038356,7]
[314174419,1708045839693,-500.0,0.00038356,7]
[314174421,1708045839702,-500.0,0.00038356,7]
[314174422,1708045839711,-500.0,0.00038356,7]
[314174423,1708045839720,-500.0,0.00038356,7]
[314174424,1708045839729,-500.0,0.00038356,7]
[314174425,1708045839738,-525.53729726,0.00038356,7]
[314174426,1708045839759,-500.0,0.00038356,7]
[314174427,1708045839771,-512.07450883,0.00038356,7]
[314174429,1708045839780,-255.76575026,0.00038356,7]
[314174431,1708045839790,-500.0,0.00038356,7]
[314174433,1708045839800,-500.0,0.00038356,7]
[314174435,1708045839809,-417.07754055,0.00038356,7]
[314174437,1708045839818,-500.0,0.00038356,7]
[314174439,1708045839828,-171.61671148,0.00038356,7]
[314174441,1708045839837,-500.0,0.00038356,7]
[314174443,1708045839847,-500.0,0.00038356,7]
[314174445,1708045839856,-500.0,0.00038356,7]
[314174447,1708045839867,-500.0,0.00038356,7]
[314174449,1708045839876,-500.0,0.00038356,7]
[314174451,1708045839885,-500.0,0.00038356,7]
[314174453,1708045839894,-500.0,0.00038356,7]
[314174455,1708045839904,-500.0,0.00038356,7]
[314174457,1708045839913,-519.02279482,0.00038356,7]
[314174459,1708045839923,-518.51418034,0.00038356,7]
[314174462,1708045839932,-500.0,0.00038356,7]
[314174464,1708045839941,-500.0,0.00038356,7]
[314174466,1708045839951,-500.0,0.00038356,7]
[314174468,1708045839962,-500.0,0.00038356,7]
[314174470,1708045839972,-612.92875329,0.00038356,7]
[314174472,1708045839981,-500.0,0.00038356,7]
[314174474,1708045839992,-500.0,0.00038356,7]
[314174476,1708045840003,-518.54240694,0.00038356,7]
[314174478,1708045840012,-500.0,0.00038356,7]
[314174480,1708045840021,-500.0,0.00038356,7]
[314174482,1708045840031,-500.0,0.00038356,7]
[314174484,1708045840041,-500.0,0.00038356,7]
[314174486,1708045840050,-1000.0,0.00038356,7]
[314174488,1708045840059,-534.40996418,0.00038356,7]
[314174490,1708045840069,-500.0,0.00038356,7]
[314174492,1708045840078,-500.0,0.00038356,7]
[314174494,1708045840087,-573.41862391,0.00038356,7]
[314174496,1708045840096,-500.0,0.00038356,7]
[314174498,1708045840106,-500.0,0.00038356,7]
[314174500,1708045840115,-500.0,0.00038356,7]
[314174502,1708045840125,-500.0,0.00038356,7]
[314174504,1708045840134,-500.0,0.00038356,7]
[314174506,1708045840144,-500.0,0.00038356,7]
[314174508,1708045840153,-314.70989924,0.00038356,7]
[314174510,1708045840162,-506.10065373,0.00038356,7]
[314174512,1708045840174,-500.0,0.00038356,7]
[314174514,1708045840183,-518.17865854,0.00038356,7]
[314174517,1708045840193,-500.0,0.00038356,7]
[314174520,1708045840203,-500.0,0.00038356,7]
[314174522,1708045840212,-500.0,0.00038356,7]
[314174525,1708045840221,-500.0,0.00038356,7]
[314174528,1708045840231,-500.0,0.00038356,7]
[314174531,1708045840241,-532.53733185,0.00038356,7]
[314174533,1708045840251,-500.0,0.00038356,7]
[314174535,1708045840260,-500.0,0.00038356,7]
[314174537,1708045840270,-500.0,0.00038356,7]
[314174539,1708045840279,-500.0,0.00038356,7]
[314174541,1708045840288,-500.0,0.00038356,7]
[314174543,1708045840298,-500.0,0.00038356,7]
[314174545,1708045840306,-500.0,0.00038356,7]
[314174547,1708045840316,-500.0,0.00038356,7]
[314174549,1708045840326,-500.0,0.00038356,7]
[314174551,1708045840336,-500.0,0.00038356,7]
[314174553,1708045840345,-500.0,0.00038356,7]
[314174555,1708045840355,-500.0,0.00038356,7]
[314174557,1708045840364,-500.0,0.00038356,7]
[314174559,1708045840373,-528.6975405,0.00038356,7]
[314174561,1708045840382,-528.28342459,0.00038356,7]
[314174563,1708045840392,-500.0,0.00038356,7]
[314174565,1708045840401,-595.61215679,0.00038356,7]
[314174567,1708045840410,-500.0,0.00038356,7]
[314174569,1708045840420,-505.93365424,0.00038356,7]
[314174571,1708045840429,-515.79290533,0.00038356,7]
[314174573,1708045840438,-526.15562697,0.00038356,7]
[314174575,1708045840447,-500.0,0.00038356,7]
[314174577,1708045840456,-500.0,0.00038356,7]
[314174579,1708045840465,-500.0,0.00038356,7]
[314174581,1708045840475,-500.0,0.00038356,7]
[314174583,1708045840484,-500.0,0.00038356,7]
[314174585,1708045840494,-500.0,0.00038356,7]
[314174587,1708045840503,-500.0,0.00038356,7]
[314174589,1708045840512,-518.46699775,0.00038356,7]
[314174591,1708045840522,-500.0,0.00038356,7]
[314174593,1708045840531,-211.46149751,0.00038356,7]
[314174595,1708045840540,-500.0,0.00038356,7]
[314174597,1708045840549,-500.0,0.00038356,7]
[314174599,1708045840558,-500.0,0.00038356,7]
[314174601,1708045840567,-500.0,0.00038356,7]
[314174603,1708045840577,-500.0,0.00038356,7]
[314174605,1708045840587,-520.35067096,0.00038356,7]
[314174607,1708045840596,-431.57160138,0.00038356,7]
[314174611,1708045840621,-68.42839862,0.00038356,7]
[314174613,1708045840630,-242.75649438,0.00038356,7]
[314174615,1708045840642,-257.24350562,0.00038356,7]
[314174617,1708045840651,-507.42330239,0.00038356,7]
[314174620,1708045840661,-500.0,0.00038356,7]
[314174621,1708045840671,-500.0,0.00038356,7]
[314174624,1708045840681,-500.0,0.00038356,7]
[314174626,1708045840690,-500.45137922,0.00038356,7]
[314174628,1708045840699,-510.33569649,0.00038356,7]
[314174630,1708045840708,-500.0,0.00038356,7]
[314174632,1708045840717,-500.0,0.00038356,7]
[314174634,1708045840726,-500.0,0.00038356,7]
[314174636,1708045840735,-507.97452473,0.00038356,7]
[314174638,1708045840745,-500.0,0.00038356,7]
[314174640,1708045840754,-500.0,0.00038356,7]
[314174642,1708045840764,-500.0,0.00038356,7]
[314174644,1708045840774,-500.0,0.00038356,7]
[314174646,1708045840784,-500.0,0.00038356,7]
[314174648,1708045840793,-500.0,0.00038356,7]
[314174650,1708045840802,-609.03238755,0.00038356,7]
[314174652,1708045840811,-405.96447399,0.00038356,7]
[314174661,1708045840887,-1.19935912,0.00038356,7]
[314174680,1708045841058,-449.46947484,0.000345,2]
[314174714,1708045841438,-575.04800416,0.000345,2]
[314174716,1708045841447,-5447.603595,0.0003452,2]
[314174718,1708045841457,-8171.405393,0.00034794,2]
[314174720,1708045841467,-1536.776219,0.000348,2]
[314174722,1708045841477,-10895.207191,0.00034931,2]
[314174724,1708045841486,-2049.034959,0.00035,2]
[314174726,1708045841496,-13619.008988,0.00035068,2]
[314174728,1708045841506,-19066.612584,0.00035342,2]
[314174730,1708045841515,-622.22250766,0.000356,2]
[314174870,1708045842837,-8312.10988733,0.0003452,2]
[314174882,1708045842949,-13385.14004167,0.0003452,2]
[314174885,1708045842959,-32545.874893,0.00034794,2]
[314174887,1708045842972,-1939.07119034,0.000356,2]
[314174889,1708045842981,-3585.811178,0.00036,2]
[314174891,1708045842990,-21790.414382,0.00036,2]
[314174893,1708045843001,-3080.79,0.00036557,2]
[314174895,1708045843010,-1723.91691791,0.000379,2]
[314174897,1708045843020,-818.19876337,0.00038,10]
[314174899,1708045843029,-150.01,0.00038133,2]
[314174901,1708045843038,-3316.12830692,0.00038133,2]
[314174903,1708045843049,-92.83616689,0.00038356,7]
[314174905,1708045843058,-500.0,0.00038356,7]
[314174907,1708045843068,-520.64124528,0.00038356,7]
[314174909,1708045843077,-618.15799416,0.00038356,7]
[314174911,1708045843086,-500.0,0.00038356,7]
[314174913,1708045843095,-507.88056127,0.00038356,7]
[314174915,1708045843104,-500.0,0.00038356,7]
[314174917,1708045843113,-500.0,0.00038356,7]
[314174919,1708045843122,-500.0,0.00038356,7]
[314174921,1708045843131,-280.05787332,0.00038356,7]
[314174923,1708045843140,-500.0,0.00038356,7]
[314174925,1708045843149,-431.330462,0.00038356,7]
[314174927,1708045843158,-155.52383233,0.00038356,7]
[314174929,1708045843167,-500.0,0.00038356,7]
[314174931,1708045843178,-500.0,0.00038356,7]
[314174933,1708045843187,-500.0,0.00038356,7]
[314174935,1708045843196,-500.0,0.00038356,7]
[314174937,1708045843206,-500.0,0.00038356,7]
[314174939,1708045843215,-500.0,0.00038356,7]
[314174941,1708045843225,-500.0,0.00038356,7]
[314174943,1708045843234,-591.75852633,0.00038356,7]
[314174945,1708045843243,-500.0,0.00038356,7]
[314174947,1708045843252,-500.0,0.00038356,7]
[314174949,1708045843262,-500.0,0.00038356,7]
[314174951,1708045843271,-542.80869724,0.00038356,7]
[314174953,1708045843280,-500.0,0.00038356,7]
[314174955,1708045843291,-500.0,0.00038356,7]
[314174957,1708045843300,-500.0,0.00038356,7]
[314174959,1708045843309,-500.0,0.00038356,7]
[314174961,1708045843319,-500.0,0.00038356,2]
[314174963,1708045843328,-531.23707262,0.00038356,7]
[314174965,1708045843338,-500.0,0.00038356,7]
[314174967,1708045843347,-500.0,0.00038356,7]
[314174969,1708045843356,-500.0,0.00038356,7]
[314174971,1708045843366,-500.0,0.00038356,7]
[314174973,1708045843375,-500.0,0.00038356,7]
[314174975,1708045843384,-500.0,0.00038356,7]
[314174977,1708045843393,-500.0,0.00038356,7]
[314174980,1708045843404,-500.0,0.00038356,7]
[314174981,1708045843414,-500.0,0.00038356,7]
[314174984,1708045843427,-500.0,0.00038356,7]
[314174986,1708045843437,-500.0,0.00038356,7]
[314174988,1708045843446,-500.0,0.00038356,7]
[314174990,1708045843456,-515.88885343,0.00038356,7]
[314174992,1708045843466,-500.0,0.00038356,7]
[314174994,1708045843475,-569.30334934,0.00038356,7]
[314174996,1708045843484,-500.0,0.00038356,7]
[314174998,1708045843494,-500.0,0.00038356,7]
[314175000,1708045843503,-500.0,0.00038356,7]
[314175002,1708045843512,-500.0,0.00038356,7]
[314175004,1708045843522,-500.0,0.00038356,7]
[314175006,1708045843531,-510.34234751,0.00038356,7]
[314175008,1708045843540,-500.0,0.00038356,7]
[314175010,1708045843550,-500.0,0.00038356,7]
[314175012,1708045843559,-500.0,0.00038356,7]
[314175014,1708045843568,-500.0,0.00038356,7]
[314175016,1708045843577,-500.0,0.00038356,7]
[314175018,1708045843587,-504.84872914,0.00038356,7]
[314175020,1708045843595,-503.79362809,0.00038356,7]
[314175022,1708045843605,-166.11207641,0.00038356,7]
[314175024,1708045843614,-500.0,0.00038356,7]
[314175026,1708045843624,-500.844281,0.00038356,2]
[314175028,1708045843633,-633.04,0.00038356,7]
[314175030,1708045843642,-500.0,0.00038356,7]
[314175032,1708045843651,-500.0,0.00038356,7]
[314175034,1708045843661,-500.0,0.00038356,7]
[314175036,1708045843672,-500.0,0.00038356,7]
[314175038,1708045843681,-500.0,0.00038356,7]
[314175040,1708045843691,-510.73845397,0.00038356,7]
[314175042,1708045843700,-500.0,0.00038356,7]
[314175044,1708045843710,-500.0,0.00038356,2]
[314175046,1708045843722,-500.0,0.00038356,7]
[314175048,1708045843731,-500.0,0.00038356,7]
[314175050,1708045843740,-500.0,0.00038356,7]
[314175052,1708045843749,-500.0,0.00038356,7]
[314175054,1708045843759,-500.0,0.00038356,7]
[314175056,1708045843768,-500.0,0.00038356,7]
[314175057,1708045843777,-500.0,0.00038356,7]
[314175059,1708045843786,-500.0,0.00038356,7]
[314175078,1708045843946,-428.12594019,0.00038356,7]
[314175080,1708045843957,-500.0,0.00038356,7]
[314175082,1708045843969,-500.0,0.00038356,7]
[314175083,1708045843978,-500.0,0.00038356,7]
[314175086,1708045843988,-526.94165787,0.00038356,7]
[314175088,1708045843998,-500.0,0.00038356,7]
[314175090,1708045844009,-532.73314181,0.00038356,7]
[314175092,1708045844018,-551.62,0.00038356,7]
[314175094,1708045844027,-500.0,0.00038356,7]
[314175096,1708045844036,-500.0,0.00038356,7]
[314175098,1708045844048,-500.0,0.00038356,7]
[314175100,1708045844057,-500.0,0.00038356,7]
[314175102,1708045844065,-500.0,0.00038356,7]
[314175104,1708045844074,-500.0,0.00038356,7]
[314175106,1708045844083,-500.0,0.00038356,7]
[314175108,1708045844092,-500.0,0.00038356,7]
[314175110,1708045844101,-500.0,0.00038356,7]
[314175112,1708045844110,-500.0,0.00038356,7]
[314175114,1708045844119,-500.0,0.00038356,7]
[314175116,1708045844128,-500.0,0.00038356,7]
[314175118,1708045844138,-500.0,0.00038356,2]
[314175120,1708045844147,-500.0,0.00038356,7]
[314175122,1708045844156,-500.0,0.00038356,7]
[314175123,1708045844165,-500.0,0.00038356,7]
[314175124,1708045844175,-514.86162866,0.00038356,7]
[314175125,1708045844183,-500.0,0.00038356,7]
[314175126,1708045844192,-500.0,0.00038356,7]
[314175127,1708045844201,-500.0,0.00038356,7]
[314175128,1708045844210,-500.0,0.00038356,7]
[314175129,1708045844219,-509.08903532,0.00038356,7]
[314175131,1708045844228,-500.0,0.00038356,7]
[314175133,1708045844237,-500.0,0.00038356,7]
[314175135,1708045844246,-500.0,0.00038356,7]
[314175137,1708045844255,-500.0,0.00038356,7]
[314175139,1708045844264,-500.0,0.00038356,7]
[314175140,1708045844274,-500.0,0.00038356,7]
[314175141,1708045844283,-500.0,0.00038356,7]
[314175142,1708045844292,-509.54190916,0.00038356,7]
[314175143,1708045844301,-500.0,0.00038356,7]
[314175144,1708045844310,-500.0,0.00038356,7]
[314175145,1708045844320,-500.0,0.00038356,7]
[314175146,1708045844329,-500.0,0.00038356,7]
[314175147,1708045844337,-500.0,0.00038356,7]
[314175148,1708045844347,-1000.0,0.00038356,120]
[314175149,1708045844356,-500.0,0.00038356,7]
[314175150,1708045844366,-500.0,0.00038356,7]
[314175151,1708045844375,-500.0,0.00038356,7]
[314175152,1708045844385,-500.0,0.00038356,7]
[314175153,1708045844394,-463.37957663,0.00038356,7]
[314175154,1708045844403,-500.0,0.00038356,7]
[314175155,1708045844412,-517.45500124,0.00038356,7]
[314175156,1708045844424,-500.0,0.00038356,7]
[314175158,1708045844433,-500.0,0.00038356,7]
[314175160,1708045844442,-500.0,0.00038356,7]
[314175162,1708045844451,-500.0,0.00038356,7]
[314175163,1708045844460,-500.0,0.00038356,7]
[314175164,1708045844469,-500.0,0.00038356,7]
[314175165,1708045844478,-500.0,0.00038356,7]
[314175166,1708045844487,-547.3551282,0.00038356,7]
[314175167,1708045844496,-500.0,0.00038356,7]
[314175168,1708045844506,-518.93042336,0.00038356,7]
[314175169,1708045844515,-500.0,0.00038356,7]
[314175170,1708045844524,-500.0,0.00038356,7]
[314175171,1708045844533,-500.0,0.00038356,7]
[314175172,1708045844542,-524.03251789,0.00038356,7]
[314175173,1708045844551,-500.0,0.00038356,7]
[314175174,1708045844561,-500.0,0.00038356,7]
[314175175,1708045844570,-500.0,0.00038356,7]
[314175176,1708045844578,-500.0,0.00038356,7]
[314175177,1708045844588,-500.0,0.00038356,7]
[314175178,1708045844597,-500.0,0.00038356,7]
[314175179,1708045844606,-500.0,0.00038356,7]
[314175180,1708045844615,-500.0,0.00038356,7]
[314175181,1708045844624,-500.0,0.00038356,7]
[314175182,1708045844633,-500.0,0.00038356,7]
[314175183,1708045844642,-500.0,0.00038356,7]
[314175184,1708045844652,-500.0,0.00038356,7]
[314175185,1708045844661,-500.0,0.00038356,7]
[314175186,1708045844671,-500.0,0.00038356,7]
[314175187,1708045844680,-259.73761298,0.00038356,7]
[314175188,1708045844690,-505.84912423,0.00038356,7]
[314175189,1708045844699,-500.0,0.00038356,7]
[314175190,1708045844709,-500.0,0.00038356,7]
[314175191,1708045844718,-500.0,0.00038356,7]
[314175192,1708045844728,-500.0,0.00038356,7]
[314175193,1708045844737,-500.0,0.00038356,7]
[314175194,1708045844747,-500.0,0.00038356,7]
[314175195,1708045844756,-500.0,0.00038356,7]
[314175196,1708045844766,-500.0,0.00038356,7]
[314175197,1708045844775,-500.0,0.00038356,7]
[314175198,1708045844785,-500.0,0.00038356,7]
[314175199,1708045844794,-500.0,0.00038356,7]
[314175200,1708045844803,-500.0,0.00038356,7]
[314175201,1708045844812,-500.0,0.00038356,7]
[314175202,1708045844821,-500.0,0.00038356,7]
[314175203,1708045844830,-500.0,0.00038356,7]
[314175204,1708045844838,-500.0,0.00038356,7]
[314175205,1708045844847,-500.0,0.00038356,7]
[314175206,1708045844856,-500.0,0.00038356,7]
[314175207,1708045844866,-500.0,0.00038356,7]
[314175208,1708045844875,-500.0,0.00038356,7]
[314175209,1708045844884,-500.0,0.00038356,7]
[314175210,1708045844893,-500.0,0.00038356,7]
[314175211,1708045844902,-540.64594209,0.00038356,7]
[314175212,1708045844912,-500.0,0.00038356,7]
[314175213,1708045844921,-500.0,0.00038356,7]
[314175214,1708045844931,-500.0,0.00038356,7]
[314175215,1708045844940,-500.0,0.00038356,7]
[314175216,1708045844949,-500.0,0.00038356,7]
[314175217,1708045844960,-500.0,0.00038356,7]
[314175218,1708045844972,-500.0,0.00038356,7]
[314175219,1708045844981,-500.0,0.00038356,7]
[314175220,1708045844991,-500.0,0.00038356,7]
[314175221,1708045845000,-500.0,0.00038356,7]
[314175222,1708045845010,-500.0,0.00038356,7]
[314175223,1708045845019,-500.0,0.00038356,7]
[314175224,1708045845029,-500.0,0.00038356,7]
[314175225,1708045845038,-318.70201796,0.00038356,7]
[314175226,1708045845049,-500.0,0.00038356,7]
[314175227,1708045845058,-500.0,0.00038356,7]
[314175228,1708045845068,-500.0,0.00038356,7]
[314175229,1708045845077,-500.0,0.00038356,7]
[314175230,1708045845086,-500.0,0.00038356,7]
[314175231,1708045845096,-500.0,0.00038356,7]
[314175232,1708045845105,-500.0,0.00038356,7]
[314175233,1708045845114,-500.0,0.00038356,7]
[314175234,1708045845123,-500.0,0.00038356,7]
[314175235,1708045845133,-500.0,0.00038356,7]
[314175236,1708045845141,-416.0,0.00038356,7]
[314175237,1708045845150,-500.0,0.00038356,7]
[314175238,1708045845159,-258.10664868,0.00038356,7]
[314175239,1708045845168,-500.0,0.00038356,7]
[314175240,1708045845178,-500.0,0.00038356,7]
[314175241,1708045845186,-500.0,0.00038356,7]
[314175242,1708045845195,-500.0,0.00038356,7]
[314175243,1708045845204,-500.0,0.00038356,7]
[314175244,1708045845213,-520.8161377,0.00038356,7]
[314175245,1708045845222,-500.0,0.00038356,7]
[314175246,1708045845231,-500.0,0.00038356,7]
[314175247,1708045845240,-513.99335436,0.00038356,7]
[314175248,1708045845249,-500.0,0.00038356,7]
[314175249,1708045845258,-500.0,0.00038356,7]
[314175250,1708045845268,-500.0,0.00038356,7]
[314175251,1708045845274,-527.69713697,0.00038356,7]
[314175252,1708045845281,-500.0,0.00038356,7]
[314175253,1708045845289,-500.0,0.00038356,7]
[314175254,1708045845296,-500.0,0.00038356,7]
[314175255,1708045845305,-500.0,0.00038356,7]
[314175256,1708045845315,-500.0,0.00038356,7]
[314175257,1708045845324,-446.32503183,0.00038356,7]
[314175258,1708045845360,-1518.76559695,0.00034931,2]
[314175259,1708045845372,-2414.87878559,0.00034931,2]
[314175262,1708045845978,-271.98943651,0.00034931,2]